[Event "Late-Titled-Tuesday-Blitz-November-28-2023"]
[Site "Chess.com"]
[Date "2023.11.28"]
[Round "5"]
[White "SanchezKelvin"]
[Black "egnfanclub"]
[Result "1-0"]
[WhiteElo "2527"]
[BlackElo "2344"]
[TimeControl "180+1"]
[EndTime "14:54:34 PST"]
[Termination "SanchezKelvin won by resignation"]

1. e4 {[%clk 0:02:16.7]} 1... e5 {[%clk 0:02:57.5]} 2. Nf3 {[%clk 0:02:16.6]}
2... Nc6 {[%clk 0:02:57.6]} 3. Bb5 {[%clk 0:02:16.8]} 3... a6 {[%clk 0:02:56.7]}
4. Ba4 {[%clk 0:02:17.3]} 4... d6 {[%clk 0:02:57]} 5. c4 {[%clk 0:02:16.5]} 5...
Bg4 {[%clk 0:02:54.1]} 6. h3 {[%clk 0:02:14.2]} 6... Bd7 {[%clk 0:02:41.2]} 7.
Nc3 {[%clk 0:02:13]} 7... Nf6 {[%clk 0:02:37.8]} 8. d3 {[%clk 0:02:11.6]} 8...
Be7 {[%clk 0:02:35.8]} 9. Bg5 {[%clk 0:02:06.5]} 9... Nd4 {[%clk 0:02:35.8]} 10.
Bxf6 {[%clk 0:02:01.8]} 10... Bxf6 {[%clk 0:02:27.8]} 11. Bxd7+ {[%clk
0:02:00.7]} 11... Qxd7 {[%clk 0:02:27.5]} 12. Nxd4 {[%clk 0:02:00.7]} 12... exd4
{[%clk 0:02:27.1]} 13. Nd5 {[%clk 0:01:55.8]} 13... Bd8 {[%clk 0:02:27.2]} 14.
O-O {[%clk 0:01:44.3]} 14... c6 {[%clk 0:02:26.9]} 15. Nf4 {[%clk 0:01:43.6]}
15... O-O {[%clk 0:02:26.3]} 16. Qg4 {[%clk 0:01:42.3]} 16... Qxg4 {[%clk
0:01:38.1]} 17. hxg4 {[%clk 0:01:40.8]} 17... Bg5 {[%clk 0:01:04.5]} 18. Ne2
{[%clk 0:01:35.3]} 18... c5 {[%clk 0:00:57.9]} 19. f4 {[%clk 0:01:34.5]} 19...
Be7 {[%clk 0:00:56.7]} 20. a4 {[%clk 0:01:24.6]} 20... g6 {[%clk 0:00:54.5]} 21.
g5 {[%clk 0:01:22.6]} 21... f5 {[%clk 0:00:53.7]} 22. exf5 {[%clk 0:01:15.1]}
22... gxf5 {[%clk 0:00:47.8]} 23. Ng3 {[%clk 0:01:12.1]} 23... Rf7 {[%clk
0:00:40.7]} 24. Rfe1 {[%clk 0:01:10.4]} 24... Bf8 {[%clk 0:00:40.3]} 25. Re6
{[%clk 0:01:09.8]} 25... Rb8 {[%clk 0:00:35.7]} 26. Rae1 {[%clk 0:00:48.3]}
26... b5 {[%clk 0:00:35.1]} 27. axb5 {[%clk 0:00:44.3]} 27... axb5 {[%clk
0:00:36]} 28. b3 {[%clk 0:00:44.1]} 28... bxc4 {[%clk 0:00:35.9]} 29. bxc4
{[%clk 0:00:44]} 29... Rb3 {[%clk 0:00:35.9]} 30. Re8 {[%clk 0:00:43.3]} 30...
Rxd3 {[%clk 0:00:32.9]} 31. Nh5 {[%clk 0:00:43.5]} 31... Re3 {[%clk 0:00:26.6]}
32. R1xe3 {[%clk 0:00:37]} 32... dxe3 {[%clk 0:00:27.5]} 33. Kf1 {[%clk
0:00:30.5]} 33... Rb7 {[%clk 0:00:23.1]} 34. Rxe3 {[%clk 0:00:25.5]} 34... Rb4
{[%clk 0:00:23.1]} 35. Rc3 {[%clk 0:00:24.7]} 35... Bg7 {[%clk 0:00:19.2]} 36.
Rc2 {[%clk 0:00:23.2]} 36... Bd4 {[%clk 0:00:18.2]} 37. Ng3 {[%clk 0:00:21.8]}
37... Rb1+ {[%clk 0:00:17]} 38. Ke2 {[%clk 0:00:20.6]} 38... Rg1 {[%clk
0:00:17]} 39. Kf3 {[%clk 0:00:19.6]} 39... Kf7 {[%clk 0:00:15.1]} 40. Nxf5
{[%clk 0:00:19.1]} 40... Rf1+ {[%clk 0:00:15.5]} 41. Ke4 {[%clk 0:00:16.3]}
41... Ke6 {[%clk 0:00:13.5]} 42. Nxd4+ {[%clk 0:00:13.9]} 42... cxd4 {[%clk
0:00:14.4]} 43. g3 {[%clk 0:00:13.1]} 43... Rd1 {[%clk 0:00:13.8]} 44. f5+
{[%clk 0:00:11.4]} 44... Ke7 {[%clk 0:00:13.5]} 45. Rf2 {[%clk 0:00:11.3]} 45...
d3 {[%clk 0:00:12.6]} 46. Kd5 {[%clk 0:00:10.5]} 46... d2 {[%clk 0:00:10.2]} 47.
g4 {[%clk 0:00:08.9]} 47... Kf7 {[%clk 0:00:09.7]} 48. Kxd6 {[%clk 0:00:08.3]}
48... Rg1 {[%clk 0:00:08.8]} 49. Rxd2 {[%clk 0:00:08.5]} 49... Rxg4 {[%clk
0:00:09.5]} 50. c5 {[%clk 0:00:08.9]} 50... Rf4 {[%clk 0:00:08.5]} 51. Rd5
{[%clk 0:00:09.3]} 51... Rc4 {[%clk 0:00:07.9]} 52. c6 {[%clk 0:00:09.6]} 52...
h5 {[%clk 0:00:06.5]} 53. gxh6 {[%clk 0:00:08.6]} 53... Kf6 {[%clk 0:00:06.7]}
54. c7 {[%clk 0:00:08.8]} 54... Kf7 {[%clk 0:00:05.7]} 55. h7 {[%clk 0:00:08.8]}
55... Kg7 {[%clk 0:00:05.9]} 56. Rc5 {[%clk 0:00:08.5]} 56... Rd4+ {[%clk
0:00:04.9]} 57. Ke5 {[%clk 0:00:08.4]} 1-0

[Event "Late-Titled-Tuesday-Blitz-November-28-2023"]
[Site "Chess.com"]
[Date "2023.11.28"]
[Round "5"]
[White "TheMagician"]
[Black "Elbebiber"]
[Result "1-0"]
[WhiteElo "2301"]
[BlackElo "2128"]
[TimeControl "180+1"]
[EndTime "14:54:38 PST"]
[Termination "TheMagician won on time"]

1. e4 {[%clk 0:02:04.9]} 1... d5 {[%clk 0:02:56.2]} 2. exd5 {[%clk 0:02:03.7]}
2... Nf6 {[%clk 0:02:55.5]} 3. Nc3 {[%clk 0:02:03.3]} 3... Nxd5 {[%clk
0:02:54.2]} 4. Bc4 {[%clk 0:02:01]} 4... Nb6 {[%clk 0:02:53.5]} 5. Bb3 {[%clk
0:02:00.8]} 5... Nc6 {[%clk 0:02:52.9]} 6. Nf3 {[%clk 0:02:00.1]} 6... Bf5
{[%clk 0:02:49.3]} 7. d3 {[%clk 0:01:59.7]} 7... e6 {[%clk 0:02:49.1]} 8. h3
{[%clk 0:01:58.5]} 8... Be7 {[%clk 0:02:43.1]} 9. O-O {[%clk 0:01:58.4]} 9...
O-O {[%clk 0:02:42.1]} 10. Re1 {[%clk 0:01:58.7]} 10... Na5 {[%clk 0:02:35.3]}
11. Be3 {[%clk 0:01:51.4]} 11... Nxb3 {[%clk 0:02:27.8]} 12. axb3 {[%clk
0:01:50.8]} 12... a6 {[%clk 0:02:27.4]} 13. Nd4 {[%clk 0:01:48.3]} 13... Bg6
{[%clk 0:02:24.4]} 14. Qf3 {[%clk 0:01:46]} 14... Nd5 {[%clk 0:02:16.4]} 15.
Nxd5 {[%clk 0:01:44.7]} 15... Qxd5 {[%clk 0:02:12.6]} 16. Qxd5 {[%clk
0:01:44.6]} 16... exd5 {[%clk 0:02:13]} 17. Bf4 {[%clk 0:01:44.6]} 17... Bf6
{[%clk 0:02:07.9]} 18. Be5 {[%clk 0:01:43.6]} 18... Bd8 {[%clk 0:01:56.2]} 19.
b4 {[%clk 0:01:38.4]} 19... Rc8 {[%clk 0:01:49.6]} 20. Nb3 {[%clk 0:01:37.4]}
20... Be7 {[%clk 0:01:31]} 21. Bxg7 {[%clk 0:01:35]} 21... Bxb4 {[%clk
0:01:27.3]} 22. Bxf8 {[%clk 0:01:24.7]} 22... Bxe1 {[%clk 0:01:26.7]} 23. Rxe1
{[%clk 0:01:23.6]} 23... Kxf8 {[%clk 0:01:26.3]} 24. f4 {[%clk 0:01:23.3]} 24...
Bf5 {[%clk 0:01:22]} 25. g4 {[%clk 0:01:23.2]} 25... Bd7 {[%clk 0:01:20.8]} 26.
Nc5 {[%clk 0:01:22.8]} 26... Bc6 {[%clk 0:01:19.4]} 27. d4 {[%clk 0:01:23.1]}
27... a5 {[%clk 0:01:18.9]} 28. f5 {[%clk 0:01:20]} 28... b6 {[%clk 0:01:19.3]}
29. Nd3 {[%clk 0:01:19.7]} 29... Re8 {[%clk 0:01:07]} 30. Ne5 {[%clk 0:01:13.9]}
30... f6 {[%clk 0:00:48.3]} 31. Nd3 {[%clk 0:01:10]} 31... Rxe1+ {[%clk
0:00:42.6]} 32. Nxe1 {[%clk 0:01:10.1]} 32... Ke7 {[%clk 0:00:40.6]} 33. Kf2
{[%clk 0:01:09.9]} 33... Bb5 {[%clk 0:00:37]} 34. h4 {[%clk 0:01:08.1]} 34... h6
{[%clk 0:00:37.2]} 35. Nf3 {[%clk 0:01:07.4]} 35... Bc4 {[%clk 0:00:33.4]} 36.
Ke3 {[%clk 0:00:59.9]} 36... Bf1 {[%clk 0:00:30]} 37. g5 {[%clk 0:00:55.7]}
37... hxg5 {[%clk 0:00:29.6]} 38. hxg5 {[%clk 0:00:56]} 38... fxg5 {[%clk
0:00:29.5]} 39. Nxg5 {[%clk 0:00:56.4]} 39... Kf6 {[%clk 0:00:28.2]} 40. Kf4
{[%clk 0:00:55.7]} 40... b5 {[%clk 0:00:20.4]} 41. Ne6 {[%clk 0:00:55.1]} 41...
c6 {[%clk 0:00:17.1]} 42. Nd8 {[%clk 0:00:53.6]} 42... Bh3 {[%clk 0:00:08.7]}
43. Nxc6 {[%clk 0:00:52.8]} 43... Bxf5 {[%clk 0:00:08.2]} 44. Nxa5 {[%clk
0:00:52.3]} 44... Bxc2 {[%clk 0:00:07.8]} 45. Nc6 {[%clk 0:00:52.1]} 45... Bd3
{[%clk 0:00:06.7]} 46. Nb4 {[%clk 0:00:49.1]} 46... Bc4 {[%clk 0:00:06.9]} 47.
Nc2 {[%clk 0:00:48]} 47... Ke6 {[%clk 0:00:07.2]} 48. b4 {[%clk 0:00:45]} 48...
Kf6 {[%clk 0:00:05.8]} 49. Ne3 {[%clk 0:00:45.1]} 49... Ke6 {[%clk 0:00:05.7]}
50. Ng4 {[%clk 0:00:43.4]} 50... Bb3 {[%clk 0:00:05]} 51. Ne5 {[%clk 0:00:43.3]}
51... Bc4 {[%clk 0:00:05.1]} 52. Nc6 {[%clk 0:00:43.1]} 52... Ba2 {[%clk
0:00:04.5]} 53. Kg5 {[%clk 0:00:41.7]} 53... Bc4 {[%clk 0:00:04.3]} 54. Ne5
{[%clk 0:00:41.8]} 54... Ba2 {[%clk 0:00:04]} 55. Ng6 {[%clk 0:00:41.9]} 55...
Bc4 {[%clk 0:00:04.1]} 56. Nf4+ {[%clk 0:00:42.1]} 56... Kd6 {[%clk 0:00:04.7]}
57. Kf6 {[%clk 0:00:42.3]} 57... Bb3 {[%clk 0:00:05.2]} 58. Ng6 {[%clk
0:00:42.1]} 58... Bc4 {[%clk 0:00:05.7]} 59. Nh8 {[%clk 0:00:42.4]} 59... Bb3
{[%clk 0:00:06.2]} 60. Nf7+ {[%clk 0:00:42.7]} 60... Kc6 {[%clk 0:00:06.3]} 61.
Ke5 {[%clk 0:00:43]} 61... Bc4 {[%clk 0:00:06.8]} 62. Nd6 {[%clk 0:00:42.5]}
62... Kd7 {[%clk 0:00:06]} 63. Nf5 {[%clk 0:00:42.4]} 63... Kc6 {[%clk
0:00:06.4]} 64. Ne3 {[%clk 0:00:42.6]} 64... Bb3 {[%clk 0:00:05.7]} 65. Ke6
{[%clk 0:00:42.8]} 65... Bc4 {[%clk 0:00:06]} 66. Ng4 {[%clk 0:00:43]} 66... Bb3
{[%clk 0:00:06.5]} 67. Ne5+ {[%clk 0:00:43.1]} 67... Kb6 {[%clk 0:00:06.7]} 68.
Kd6 {[%clk 0:00:43.4]} 68... Bc4 {[%clk 0:00:07.3]} 69. Nd7+ {[%clk 0:00:43.7]}
69... Kb7 {[%clk 0:00:06.7]} 70. Nf6 {[%clk 0:00:43.8]} 70... Bf1 {[%clk
0:00:01.4]} 71. Kc5 {[%clk 0:00:43.3]} 1-0

[Event "Late-Titled-Tuesday-Blitz-November-28-2023"]
[Site "Chess.com"]
[Date "2023.11.28"]
[Round "5"]
[White "DraningWaterHi"]
[Black "cthulhuuu"]
[Result "0-1"]
[WhiteElo "2177"]
[BlackElo "2494"]
[TimeControl "180+1"]
[EndTime "14:54:47 PST"]
[Termination "cthulhuuu won by checkmate"]

1. d4 {[%clk 0:03:00.9]} 1... Nf6 {[%clk 0:02:57.8]} 2. c4 {[%clk 0:02:59.9]}
2... e5 {[%clk 0:02:53.8]} 3. dxe5 {[%clk 0:02:59.5]} 3... Ng4 {[%clk
0:02:53.9]} 4. Nf3 {[%clk 0:02:59.5]} 4... Bc5 {[%clk 0:02:51.4]} 5. e3 {[%clk
0:02:53.8]} 5... Nc6 {[%clk 0:02:48.9]} 6. a3 {[%clk 0:02:48.8]} 6... a5 {[%clk
0:02:47.7]} 7. Qd5 {[%clk 0:02:48.6]} 7... Qe7 {[%clk 0:02:46.7]} 8. Nc3 {[%clk
0:02:47.1]} 8... Ngxe5 {[%clk 0:02:45.4]} 9. Nxe5 {[%clk 0:02:47]} 9... Nxe5
{[%clk 0:02:46.3]} 10. Be2 {[%clk 0:02:43.4]} 10... O-O {[%clk 0:02:42.5]} 11.
O-O {[%clk 0:02:32.4]} 11... d6 {[%clk 0:02:42.5]} 12. Qd1 {[%clk 0:02:31.9]}
12... c6 {[%clk 0:02:42.7]} 13. Ne4 {[%clk 0:02:25.6]} 13... Bf5 {[%clk
0:02:10.3]} 14. Nxc5 {[%clk 0:02:23.5]} 14... dxc5 {[%clk 0:02:11.2]} 15. Qb3
{[%clk 0:02:16.9]} 15... a4 {[%clk 0:01:55]} 16. Qc3 {[%clk 0:02:15.9]} 16...
Ra6 {[%clk 0:01:55.4]} 17. f3 {[%clk 0:02:15.4]} 17... Rb6 {[%clk 0:01:53.4]}
18. e4 {[%clk 0:02:11.2]} 18... Bc8 {[%clk 0:01:32.9]} 19. Bf4 {[%clk
0:02:06.3]} 19... f6 {[%clk 0:01:29.6]} 20. Qc2 {[%clk 0:01:54.9]} 20... Rb3
{[%clk 0:01:26.6]} 21. Rad1 {[%clk 0:01:23.6]} 21... Be6 {[%clk 0:01:25.1]} 22.
Bc1 {[%clk 0:01:05.9]} 22... Qf7 {[%clk 0:01:17.9]} 23. f4 {[%clk 0:00:53]}
23... Nxc4 {[%clk 0:00:41.9]} 24. f5 {[%clk 0:00:48.6]} 24... Ne5 {[%clk
0:00:28.5]} 25. fxe6 {[%clk 0:00:46.7]} 25... Qxe6 {[%clk 0:00:29.4]} 26. Bf4
{[%clk 0:00:44.2]} 26... Kh8 {[%clk 0:00:29.5]} 27. Bxe5 {[%clk 0:00:35.3]}
27... Qxe5 {[%clk 0:00:30.4]} 28. Bc4 {[%clk 0:00:35]} 28... Re3 {[%clk
0:00:30.3]} 29. Rde1 {[%clk 0:00:32.7]} 29... Qd4 {[%clk 0:00:26.3]} 30. Rxe3
{[%clk 0:00:32.1]} 30... Qxe3+ {[%clk 0:00:27.2]} 31. Kh1 {[%clk 0:00:32.7]}
31... Re8 {[%clk 0:00:26.9]} 32. Qd3 {[%clk 0:00:28.2]} 32... Qd4 {[%clk
0:00:22.2]} 33. Qxd4 {[%clk 0:00:23.5]} 33... cxd4 {[%clk 0:00:23.1]} 34. Bd3
{[%clk 0:00:24.1]} 34... c5 {[%clk 0:00:20.6]} 35. Rc1 {[%clk 0:00:22.9]} 35...
b6 {[%clk 0:00:21]} 36. g4 {[%clk 0:00:21.1]} 36... h5 {[%clk 0:00:20.1]} 37. h3
{[%clk 0:00:21.1]} 37... hxg4 {[%clk 0:00:20.2]} 38. hxg4 {[%clk 0:00:22]} 38...
Kh7 {[%clk 0:00:20.6]} 39. Kg2 {[%clk 0:00:21.3]} 39... Kh6 {[%clk 0:00:21.1]}
40. Kf3 {[%clk 0:00:21]} 40... Kg5 {[%clk 0:00:21.5]} 41. Rh1 {[%clk 0:00:21]}
41... g6 {[%clk 0:00:22.2]} 42. Rh7 {[%clk 0:00:19.4]} 42... Rc8 {[%clk
0:00:21.7]} 43. Bc4 {[%clk 0:00:17.6]} 43... b5 {[%clk 0:00:20.7]} 44. Bxb5
{[%clk 0:00:16.9]} 44... Rb8 {[%clk 0:00:20.6]} 45. Bxa4 {[%clk 0:00:14.1]}
45... Rxb2 {[%clk 0:00:20.8]} 46. Rg7 {[%clk 0:00:14.4]} 46... Ra2 {[%clk
0:00:20.3]} 47. Be8 {[%clk 0:00:13.9]} 47... Rxa3+ {[%clk 0:00:20.7]} 48. Ke2
{[%clk 0:00:14.2]} 48... Kf4 {[%clk 0:00:20.8]} 49. Bxg6 {[%clk 0:00:13.8]}
49... c4 {[%clk 0:00:20.1]} 50. Bf5 {[%clk 0:00:12.6]} 50... Ra2+ {[%clk
0:00:20.5]} 51. Kd1 {[%clk 0:00:12.6]} 51... Ke3 {[%clk 0:00:21.4]} 52. Rc7
{[%clk 0:00:12]} 52... c3 {[%clk 0:00:19.9]} 53. e5 {[%clk 0:00:11.4]} 53...
fxe5 {[%clk 0:00:20.8]} 54. g5 {[%clk 0:00:11.1]} 54... Rf2 {[%clk 0:00:15.8]}
55. Bh7 {[%clk 0:00:08.1]} 55... d3 {[%clk 0:00:16.1]} 56. Bxd3 {[%clk
0:00:06.6]} 56... Kxd3 {[%clk 0:00:16.1]} 57. Rd7+ {[%clk 0:00:06.4]} 57... Ke3
{[%clk 0:00:16.3]} 58. g6 {[%clk 0:00:05.6]} 58... Rg2 {[%clk 0:00:15.1]} 59. g7
{[%clk 0:00:06]} 59... e4 {[%clk 0:00:15.5]} 60. Re7 {[%clk 0:00:05.6]} 60...
Kd3 {[%clk 0:00:15.3]} 61. Rd7+ {[%clk 0:00:06]} 61... Ke3 {[%clk 0:00:15.6]}
62. Rc7 {[%clk 0:00:05.6]} 62... c2+ {[%clk 0:00:11.7]} 63. Rxc2 {[%clk
0:00:05]} 63... Rg1# {[%clk 0:00:12.1]} 0-1

[Event "Late-Titled-Tuesday-Blitz-November-28-2023"]
[Site "Chess.com"]
[Date "2023.11.28"]
[Round "5"]
[White "Perecke"]
[Black "IMRosen"]
[Result "0-1"]
[WhiteElo "2499"]
[BlackElo "2701"]
[TimeControl "180+1"]
[EndTime "14:54:50 PST"]
[Termination "IMRosen won on time"]

1. e4 {[%clk 0:02:41.8]} 1... c5 {[%clk 0:02:53.7]} 2. Nf3 {[%clk 0:02:42.1]}
2... e6 {[%clk 0:02:53.6]} 3. d4 {[%clk 0:02:42.6]} 3... cxd4 {[%clk 0:02:54.5]}
4. Nxd4 {[%clk 0:02:43.5]} 4... Nc6 {[%clk 0:02:54.6]} 5. Nc3 {[%clk 0:02:43.3]}
5... Qc7 {[%clk 0:02:53.4]} 6. Be3 {[%clk 0:02:38.2]} 6... a6 {[%clk 0:02:53.4]}
7. g4 {[%clk 0:02:38.2]} 7... h6 {[%clk 0:02:52.8]} 8. Rg1 {[%clk 0:02:27.9]}
8... Qxh2 {[%clk 0:02:33.4]} 9. Rg3 {[%clk 0:02:25.2]} 9... Bd6 {[%clk
0:02:28.5]} 10. Nf3 {[%clk 0:02:15.9]} 10... Bxg3 {[%clk 0:02:27.6]} 11. Nxh2
{[%clk 0:02:09.3]} 11... Bxh2 {[%clk 0:02:28.5]} 12. Qf3 {[%clk 0:02:01.8]}
12... Bc7 {[%clk 0:02:08.4]} 13. O-O-O {[%clk 0:01:58.1]} 13... Nge7 {[%clk
0:02:08.6]} 14. g5 {[%clk 0:01:46]} 14... hxg5 {[%clk 0:02:02.2]} 15. Bxg5
{[%clk 0:01:46.9]} 15... f6 {[%clk 0:02:03]} 16. Bf4 {[%clk 0:01:46]} 16... Ne5
{[%clk 0:02:02.9]} 17. Qg2 {[%clk 0:01:39.9]} 17... g5 {[%clk 0:02:02.2]} 18.
Bg3 {[%clk 0:01:31]} 18... N7g6 {[%clk 0:01:55.5]} 19. Be2 {[%clk 0:01:29.3]}
19... b5 {[%clk 0:01:41]} 20. Rh1 {[%clk 0:01:26.9]} 20... Rxh1+ {[%clk
0:01:40.2]} 21. Qxh1 {[%clk 0:01:27.8]} 21... Bb7 {[%clk 0:01:40.8]} 22. Bxe5
{[%clk 0:01:01.9]} 22... Bxe5 {[%clk 0:01:36.1]} 23. Qh5 {[%clk 0:00:46.5]}
23... O-O-O {[%clk 0:01:00.7]} 24. Qxg6 {[%clk 0:00:45.6]} 24... Rh8 {[%clk
0:01:01.4]} 25. Bf3 {[%clk 0:00:35.2]} 25... Rh2 {[%clk 0:00:55.5]} 26. Nd1
{[%clk 0:00:34]} 26... Rh3 {[%clk 0:00:44.9]} 27. Bg4 {[%clk 0:00:29.1]} 27...
Rh4 {[%clk 0:00:37.7]} 28. Bf3 {[%clk 0:00:27.5]} 28... Rh3 {[%clk 0:00:37.7]}
29. Be2 {[%clk 0:00:26.8]} 29... Rh4 {[%clk 0:00:22.7]} 30. f3 {[%clk
0:00:13.2]} 30... Rh2 {[%clk 0:00:17.7]} 31. Kd2 {[%clk 0:00:12.5]} 31... Kc7
{[%clk 0:00:12.9]} 32. Qe8 {[%clk 0:00:10.8]} 32... b4 {[%clk 0:00:07.8]} 33.
Qe7 {[%clk 0:00:10.2]} 33... Bd6 {[%clk 0:00:08.2]} 34. Qxf6 {[%clk 0:00:09.1]}
34... Rh4 {[%clk 0:00:08.1]} 35. Ne3 {[%clk 0:00:06.5]} 35... Bf4 {[%clk
0:00:05.3]} 36. Kd3 {[%clk 0:00:05.1]} 36... a5 {[%clk 0:00:05.5]} 37. c4 {[%clk
0:00:05.5]} 37... bxc3 {[%clk 0:00:02.5]} 38. bxc3 {[%clk 0:00:06.4]} 38... Bc6
{[%clk 0:00:02.7]} 39. c4 {[%clk 0:00:06.5]} 39... Rh1 {[%clk 0:00:03]} 40. Qb2
{[%clk 0:00:06]} 40... a4 {[%clk 0:00:02.7]} 41. Nc2 {[%clk 0:00:06.2]} 41...
Kd8 {[%clk 0:00:02.7]} 42. Nd4 {[%clk 0:00:06.2]} 42... Ba8 {[%clk 0:00:01.6]}
43. Qb6+ {[%clk 0:00:06.1]} 43... Bc7 {[%clk 0:00:01.1]} 44. Qa7 {[%clk
0:00:06.1]} 44... Bc6 {[%clk 0:00:01.2]} 45. Nxc6+ {[%clk 0:00:06.2]} 45... dxc6
{[%clk 0:00:02.1]} 46. Qxa4 {[%clk 0:00:04.7]} 46... Rh3 {[%clk 0:00:01.9]} 47.
Qxc6 {[%clk 0:00:04]} 47... g4 {[%clk 0:00:01.9]} 48. Qxe6 {[%clk 0:00:04]}
48... Rg3 {[%clk 0:00:01.6]} 49. Qf6+ {[%clk 0:00:02.9]} 49... Kc8 {[%clk
0:00:01.7]} 50. Qf5+ {[%clk 0:00:03]} 50... Kb8 {[%clk 0:00:01.9]} 51. Kc2
{[%clk 0:00:03.7]} 51... Rg2 {[%clk 0:00:01.9]} 52. Kd1 {[%clk 0:00:03.7]} 52...
g3 {[%clk 0:00:02.6]} 53. Qg4 {[%clk 0:00:04.2]} 53... Rh2 {[%clk 0:00:02.9]}
54. Kd2 {[%clk 0:00:04.6]} 54... g2 {[%clk 0:00:02.9]} 55. Kd3 {[%clk 0:00:05]}
55... Bb6 {[%clk 0:00:03]} 56. Qg8+ {[%clk 0:00:04]} 56... Ka7 {[%clk
0:00:03.2]} 57. c5 {[%clk 0:00:04.3]} 57... Bxc5 {[%clk 0:00:03.2]} 58. Qf7+
{[%clk 0:00:04.7]} 58... Kb6 {[%clk 0:00:02.7]} 59. Qb3+ {[%clk 0:00:04.7]}
59... Kc7 {[%clk 0:00:02.8]} 60. Qf7+ {[%clk 0:00:04.6]} 60... Kb6 {[%clk
0:00:03.1]} 61. Qb3+ {[%clk 0:00:02.6]} 61... Kc6 {[%clk 0:00:02.8]} 62. Qd5+
{[%clk 0:00:02.5]} 62... Kb6 {[%clk 0:00:03.5]} 63. Qe6+ {[%clk 0:00:02.4]}
63... Kc7 {[%clk 0:00:04]} 64. Qe5+ {[%clk 0:00:02.4]} 64... Bd6 {[%clk
0:00:03.4]} 65. Qxh2 {[%clk 0:00:03.3]} 65... Bxh2 {[%clk 0:00:03.5]} 0-1

[Event "Late-Titled-Tuesday-Blitz-November-28-2023"]
[Site "Chess.com"]
[Date "2023.11.28"]
[Round "5"]
[White "carloseduar100"]
[Black "Mikhal867"]
[Result "1-0"]
[WhiteElo "2272"]
[BlackElo "2404"]
[TimeControl "180+1"]
[EndTime "14:54:50 PST"]
[Termination "carloseduar100 won on time"]

1. g3 {[%clk 0:02:54.4]} 1... c5 {[%clk 0:02:59.2]} 2. Bg2 {[%clk 0:02:55.3]}
2... d5 {[%clk 0:02:58.7]} 3. c4 {[%clk 0:02:53.5]} 3... d4 {[%clk 0:02:58]} 4.
d3 {[%clk 0:02:53.3]} 4... e5 {[%clk 0:02:56.4]} 5. a3 {[%clk 0:02:53.4]} 5...
Nf6 {[%clk 0:02:48.1]} 6. Nd2 {[%clk 0:02:53.5]} 6... Nc6 {[%clk 0:02:46.8]} 7.
Ngf3 {[%clk 0:02:46.7]} 7... Bd6 {[%clk 0:02:45.9]} 8. O-O {[%clk 0:02:46.6]}
8... Qe7 {[%clk 0:02:40.3]} 9. Ng5 {[%clk 0:02:42.2]} 9... a5 {[%clk 0:02:31.6]}
10. Nge4 {[%clk 0:02:42]} 10... Bc7 {[%clk 0:02:28.6]} 11. b3 {[%clk 0:02:42.4]}
11... Nd7 {[%clk 0:02:23.1]} 12. Nf3 {[%clk 0:02:39.1]} 12... h6 {[%clk
0:02:20.9]} 13. e3 {[%clk 0:02:35.4]} 13... O-O {[%clk 0:02:10.7]} 14. exd4
{[%clk 0:02:03.3]} 14... cxd4 {[%clk 0:02:09.7]} 15. Re1 {[%clk 0:02:00.1]}
15... f5 {[%clk 0:02:09.2]} 16. Ned2 {[%clk 0:02:00.3]} 16... Nc5 {[%clk
0:02:09]} 17. Qc2 {[%clk 0:01:59.7]} 17... e4 {[%clk 0:01:59.8]} 18. dxe4 {[%clk
0:01:57.2]} 18... d3 {[%clk 0:01:59.3]} 19. Qc3 {[%clk 0:01:52.4]} 19... fxe4
{[%clk 0:01:58]} 20. Bb2 {[%clk 0:01:53]} 20... Bf5 {[%clk 0:01:44.8]} 21. b4
{[%clk 0:01:36.9]} 21... axb4 {[%clk 0:01:41.5]} 22. axb4 {[%clk 0:01:37.8]}
22... Na4 {[%clk 0:01:20.8]} 23. Rxa4 {[%clk 0:01:22.2]} 23... Rxa4 {[%clk
0:01:19.8]} 24. Nxe4 {[%clk 0:01:21.9]} 24... Bxe4 {[%clk 0:01:13]} 25. Rxe4
{[%clk 0:01:20]} 25... Qf6 {[%clk 0:01:08.6]} 26. Qxf6 {[%clk 0:01:06.3]} 26...
gxf6 {[%clk 0:01:05.9]} 27. b5 {[%clk 0:01:06.5]} 27... Na5 {[%clk 0:01:01.6]}
28. Re7 {[%clk 0:01:01.5]} 28... Nxc4 {[%clk 0:00:59.2]} 29. Bc3 {[%clk
0:00:34.3]} 29... Ba5 {[%clk 0:00:55.9]} 30. Bxa5 {[%clk 0:00:24.7]} 30... Rxa5
{[%clk 0:00:55.4]} 31. Rd7 {[%clk 0:00:23.9]} 31... Ra3 {[%clk 0:00:37.6]} 32.
Bf1 {[%clk 0:00:22.7]} 32... Nb2 {[%clk 0:00:30.6]} 33. Rxb7 {[%clk 0:00:19.5]}
33... Rd8 {[%clk 0:00:30]} 34. Nd2 {[%clk 0:00:19.5]} 34... Na4 {[%clk
0:00:24.5]} 35. Kg2 {[%clk 0:00:10.7]} 35... Ra2 {[%clk 0:00:24.8]} 36. Ne4
{[%clk 0:00:10.9]} 36... Ra8 {[%clk 0:00:16.5]} 37. Bxd3 {[%clk 0:00:10.8]}
37... f5 {[%clk 0:00:15.5]} 38. Bc4+ {[%clk 0:00:10.7]} 38... Kf8 {[%clk
0:00:15.6]} 39. Bxa2 {[%clk 0:00:11]} 39... fxe4 {[%clk 0:00:15.8]} 40. Rf7+
{[%clk 0:00:10.1]} 40... Ke8 {[%clk 0:00:16.1]} 41. Bd5 {[%clk 0:00:09.2]} 41...
Rd8 {[%clk 0:00:13.8]} 42. Rf5 {[%clk 0:00:08.3]} 42... Nc5 {[%clk 0:00:12.9]}
43. Bc6+ {[%clk 0:00:08.4]} 43... Nd7 {[%clk 0:00:12.5]} 44. Re5+ {[%clk
0:00:08.8]} 44... Kf7 {[%clk 0:00:12.5]} 45. Bxd7 {[%clk 0:00:09.2]} 45... Rxd7
{[%clk 0:00:12.4]} 46. Rxe4 {[%clk 0:00:09.9]} 46... Rb7 {[%clk 0:00:12.4]} 47.
Rb4 {[%clk 0:00:10.6]} 47... Ke6 {[%clk 0:00:12.3]} 48. f4 {[%clk 0:00:11.2]}
48... Kf5 {[%clk 0:00:12.1]} 49. Kf3 {[%clk 0:00:11.2]} 49... Rb6 {[%clk
0:00:12.6]} 50. h3 {[%clk 0:00:11.4]} 50... h5 {[%clk 0:00:13]} 51. g4+ {[%clk
0:00:12]} 51... Kg6 {[%clk 0:00:13.2]} 52. f5+ {[%clk 0:00:12.2]} 52... Kg5
{[%clk 0:00:13.4]} 53. Kg3 {[%clk 0:00:12.7]} 53... h4+ {[%clk 0:00:11.3]} 54.
Kf3 {[%clk 0:00:13.5]} 54... Rd6 {[%clk 0:00:11.4]} 55. b6 {[%clk 0:00:13.8]}
55... Rd3+ {[%clk 0:00:11.5]} 56. Kg2 {[%clk 0:00:14.3]} 56... Rd2+ {[%clk
0:00:11.5]} 57. Kf3 {[%clk 0:00:14.5]} 57... Rd3+ {[%clk 0:00:11.8]} 58. Ke4
{[%clk 0:00:15]} 58... Rd8 {[%clk 0:00:11.1]} 59. b7 {[%clk 0:00:15.4]} 59...
Rb8 {[%clk 0:00:11.3]} 60. Rb6 {[%clk 0:00:14.4]} 60... Re8+ {[%clk 0:00:08.6]}
61. Re6 {[%clk 0:00:14.8]} 1-0